Cogmind - Beta 13 @@@ ROGUE MODE // 2024.03.10 @ 03:16:57 Player: Mogwok Wargfriend Result: Destroyed by G-34 Mercenary with Small Laser Performance ------------- Evolutions (1) 500 Regions Visited (2) 400 Robots Destroyed (18) 90 Value Destroyed (263) 263 Prototype IDs (0) 0 Alien Tech Used (0) 0 Bonus (0) 0 TOTAL SCORE: 1253 Bonus ------- None Cogmind --------- Core Integrity 0/400 Matter 262/300 Energy 100/100 System Corruption 0% Temperature Cool (6) Movement Core (50) Location -9/Materials Parts ------- > --- POWER (1) -------- (None) > --- PROPULSION (3) --- (None) > --- UTILITY (3) ------ Structural Scanner Signal Interpreter > --- WEAPON (2) ------- Light Assault Rifle > --- INVENTORY (5) ---- Heat Sink Medium Battery (150) Datajack Peak State ------------ > --- POWER ------------ Light Ion Engine > --- PROPULSION ------- Flight Unit Flight Unit > --- UTILITY ---------- Structural Scanner Signal Interpreter > --- WEAPON ----------- Mining Claw Mining Claw > --- INVENTORY -------- Medium Battery Datajack [Rating: 7] Favorites ----------- Power Light Ion Engine Engine Light Ion Engine Propulsion Flight Unit Leg Aluminum Leg Flight Unit Flight Unit Utility Structural Scanner Device Structural Scanner Storage Small Storage Unit Processor Signal Interpreter Weapon Mining Claw Energy Gun Small Laser Energy Cannon Beam Cannon Ballistic Gun Light Assault Rifle Slashing Weapon Mining Claw Special Melee Weapon Datajack Build | -11 -10 -9 ------- Run | Yrd Mat Mat Slots Evolved 2 | . . 2 Power . | . . . Propulsion 1 | . . 1 Utility 1 | . . 1 Weapon . | . . . Parts Attached 32 | 6 13 13 Power 6 | 1 3 2 Engine 6 | 1 3 2 Core . | . . . Reactor . | . . . Propulsion 11 | 2 6 3 Treads . | . . . Leg 2 | 2 . . Wheel . | . . . Hover . | . . . Flight 9 | . 6 3 Utility 3 | 1 1 1 Device 1 | . 1 . Storage 1 | 1 . . Processor 1 | . . 1 Hackware . | . . . Protection . | . . . Artifact . | . . . Weapon 12 | 2 3 7 Energy Gun 1 | 1 . . Energy Cannon 1 | . 1 . Ballistic Gun 2 | 1 . 1 Ballistic Cannon . | . . . Launcher . | . . . Special Weapon . | . . . Impact Weapon . | . . . Slashing Weapon 7 | . 1 6 Piercing Weapon . | . . . Special Melee Weapon 1 | . 1 . Unidentified Prototypes . | . . . Parts Lost 15 | . 4 11 Power 4 | . 1 3 Propulsion 8 | . 3 5 Utility . | . . . Weapon 3 | . . 3 Highest Loss Streak 6 | . 3 6 To Critical Strikes . | . . . Average Slot Usage (%) 75 | . 84 58 Engine 11 | . 14 7 Leg 4 | . 6 . Flight 19 | . 21 16 Device 9 | . 9 11 Storage 2 | . 4 . Processor 1 | . . 4 Energy Cannon 3 | . 5 . Ballistic Gun 2 | . 4 . Slashing Weapon 11 | . 6 19 Special Melee Weapon 6 | . 9 . Naked Turns . | . . . Heaviest Build 12 | 10 12 8 Greatest Support 20 | 20 20 8 Greatest Overweight (x) 2 | . 2 1 Average Overweight (x) . | . . . Largest Inventory Capacity 8 | 8 8 5 Average Capacity 5 | 7 5 5 Most Carried 8 | 4 8 5 Average Carried 4 | 2 5 3 Final Capacity 8 | 8 5 5 Final Carried 5 | 4 5 3 Class Distribution -------------------- 100% | Mutant Dominant Class ---------------- Mutant | -10/Materials Mutant | -9/Materials Resources | -11 -10 -9 ----------- Run | Yrd Mat Mat Matter Collected 425 | 228 157 40 Remotely . | . . . Salvage Created 430 | . 263 167 Parts 35 | . 22 13 Haulers Intercepted . | . . . Recyclers Shooed . | . . . Parts Field Recycled . | . . . Retrieved Matter . | . . . Parts Self-Destructed . | . . . Prevented . | . . . Kills | -11 -10 -9 ------- Run | Yrd Mat Mat Combat Hostiles Destroyed 16 | . 8 8 Melee 10 | . 3 7 Guns 3 | . 2 1 Cannons 3 | . 3 . Classes Destroyed 5 | . 4 1 Worker 1 | . 1 . Recycler 1 | . 1 . Swarmer 13 | . 6 7 Grunt 2 | . 2 . Sentry 1 | . . 1 Best Kill Streak 5 | . 5 3 Combat Bots Only 3 | . 3 3 Max Kills in Single Turn 1 | . 1 1 Gunslinging . | . . . Exploded . | . . . Melee 1 | . 1 1 Uniques/NPCs Destroyed . | . . . Combat | -11 -10 -9 -------- Run | Yrd Mat Mat Hostile Shots Fired 198 | . 71 127 Missed 67 | . 27 40 Damage Taken 1178 | . 416 762 Core 505 | . 96 409 Absorbed by Shields . | . . . Core Remaining (%) 80 | 100 61 . Volleys Fired 19 | . 16 3 Largest 2 | . 2 1 Hottest 80 | . 80 20 Shots Fired 33 | . 30 3 Gun 17 | . 14 3 Cannon 16 | . 16 . Launcher . | . . . Special . | . . . Kinetic 17 | . 14 3 Thermal 16 | . 16 . Explosive . | . . . Electromagnetic . | . . . Robot Hit Streak 7 | . 7 1 Robot Miss Streak 4 | . 2 4 Penetration Max . | . . . Secondary Targets . | . . . Shots Hit Robots 42 | . 24 18 Core Hits 21 | . 13 8 Critical Kills . | . . . Critical Parts Destroyed . | . . . Critical Strikes . | . . . Melee Attacks 48 | . 19 29 Impact . | . . . Slashing 48 | . 19 29 Piercing . | . . . Sneak Attacks 1 | . . 1 Combat Hostiles . | . . . Follow-up Attacks 2 | . . 2 Damage Inflicted 825 | . 415 410 Guns 52 | . 46 6 Cannons 194 | . 194 . Explosions . | . . . Melee 579 | . 175 404 Ramming . | . . . Kinetic 52 | . 46 6 Thermal 194 | . 194 . Explosive . | . . . Electromagnetic . | . . . Impact . | . . . Slashing 579 | . 175 404 Piercing . | . . . Highest Corruption . | . . . Average Corruption . | . . . Corruption Purged . | . . . Corruption Blocked . | . . . Overload Shots . | . . . Overflow Damage 16 | . . 16 Projectiles . | . . . Explosions . | . . . Melee 16 | . . 16 Knockbacks . | . . . Impact . | . . . Kinetic . | . . . Secondary . | . . . Self-Inflicted Damage . | . . . Shots . | . . . Rammed . | . . . Targets Rammed . | . . . Kicked . | . . . Crushed . | . . . Highest Temperature 257 | . 257 1 Average Temperature 90 | . 91 1 Received Heat Transfer 180 | . 123 57 Effects 1 | . 1 . Interference 1 | . 1 . Siege Activations . | . . . Robots Corrupted . | . . . Combat Hostiles . | . . . Parts Fried . | . . . Impact Corruptions . | . . . Robots Melted . | . . . Combat Hostiles . | . . . Parts Melted . | . . . Heat Transferred 407 | . 407 . Parts Sabotaged . | . . . Parts Stolen . | . . . Parts Stripped . | . . . Power Chain Reactions . | . . . Alert | -11 -10 -9 ------- Run | Yrd Mat Mat Peak Influence 405 | . 405 387 Initial 135 | . . 135 Average 184 | . 199 208 Maximum Alert Level 2 | . 2 1 Low Security (%) 56 | 100 46 61 Level 1 42 | . 50 38 Level 2 1 | . 2 . Level 3 . | . . . Level 4 . | . . . Level 5 . | . . . High Security . | . . . Max Security . | . . . Squads Dispatched 4 | . 3 1 Investigation 3 | . 3 . Extermination . | . . . Reinforcement 1 | . . 1 Assault . | . . . Garrison . | . . . Intercept . | . . . Searches Triggered . | . . . Construction Impeded . | . . . Haulers Reinforced . | . . . Active Scanning Responses . | . . . Cargo Convoy Interrupts . | . . . Stealth | -11 -10 -9 --------- Run | Yrd Mat Mat Distress Signals 2 | . 1 1 Communications Jammed . | . . . Distress Signals . | . . . Times Spotted 45 | . 25 20 Peak Tracking Total 10 | . 9 10 Tactical Retreats 8 | . 5 3 Traps | -11 -10 -9 ------- Run | Yrd Mat Mat Traps Triggered 1 | . 1 . Indirectly . | . . . Trap Hack Attempts . | . . . Triggered . | . . . Disarmed . | . . . Reprogrammed . | . . . Reused . | . . . Traps Extracted . | . . . Installed . | . . . Triggered . | . . . Machines | -11 -10 -9 ---------- Run | Yrd Mat Mat Machines Disabled . | . . . Max in Single Turn . | . . . Machines Repaired . | . . . Machines Dismantled . | . . . Machines Sabotaged . | . . . Overloaded Fab Kills . | . . . Hacking | -11 -10 -9 --------- Run | Yrd Mat Mat Machines Accessed 13 | . 8 5 Terminals 12 | . 8 4 Fabricators . | . . . Repair Stations . | . . . Recycling Units . | . . . Scanalyzers 1 | . . 1 Garrison Access . | . . . Total Hacks 37 | . 23 14 Successful 18 | . 11 7 Failed 18 | . 11 7 Catastrophic 1 | . 1 . Database Lockouts 1 | . 1 . Manual 45 | . 37 8 Terminals 33 | . 23 10 Fabricators . | . . . Repair Stations . | . . . Recycling Units . | . . . Scanalyzers 4 | . . 4 Garrison Access . | . . . Terminal Hacks 6 | . 5 1 Part Schematic 2 | . 2 . Robot Analysis 1 | . 1 . Level Access Points 1 | . 1 . Terminal Index 1 | . 1 . Locate Traps 1 | . . 1 Fabricator Hacks . | . . . Repair Station Hacks . | . . . Recycling Unit Hacks . | . . . Scanalyzer 4 | . . 4 Insert Component 2 | . . 2 Analyze 2 | . . 2 Garrison Access Hacks . | . . . Unauthorized Hacks 8 | . 6 2 Terminals 8 | . 6 2 Assimilate 8 | . 6 2 Fabricators . | . . . Repair Stations . | . . . Recycling Units . | . . . Scanalyzers . | . . . Garrison Access . | . . . Data Cores Recovered . | . . . Used . | . . . Hacking Detections 12 | . 8 4 Full Trace Events 2 | . 2 . Feedback Events . | . . . Feedback Blocked . | . . . Robot Schematics Acquired . | . . . Robots Built . | . . . Authchips . | . . . Time . | . . . Total Robot Build Rating . | . . . Part Schematics Acquired 4 | . 2 2 Parts Built . | . . . Authchips . | . . . Time . | . . . Total Part Build Rating . | . . . Parts Repaired . | . . . Time . | . . . Parts Recycled . | . . . Recycled Matter . | . . . Retrieved Matter . | . . . Retrieved Components . | . . . Parts Scanalyzed 2 | . . 2 Part Schematics Acquired 2 | . . 2 Parts Damaged . | . . . Bothacking | -11 -10 -9 ------------ Run | Yrd Mat Mat Used RIF Installer . | . . . Robots Hacked . | . . . Non-combat . | . . . Combat . | . . . Robot Hacks Applied . | . . . Relay Couplers Released . | . . . Fabnet Peak Effective % . | . . . Robots Rewired . | . . . Allies Hacked . | . . . Hacks Repelled . | . . . Allies | -11 -10 -9 -------- Run | Yrd Mat Mat Total Allies 1 | . . 1 Largest Group 1 | . . 1 Highest-Rated Group 10 | . . 10 Highest-Rated Ally 10 | . . 10 Total Orders 1 | . . 1 FOLLOW 1 | . . 1 Ally Attacks . | . . . Total Damage . | . . . Kills . | . . . Allies Corrupted . | . . . Allies Melted . | . . . Intel | -11 -10 -9 ------- Run | Yrd Mat Mat Robot Analysis Total 1 | . 1 . Derelict Logs Recovered . | . . . Drone Launches . | . . . Drone Recoveries . | . . . Exploration | -11 -10 -9 ------------- Run | Yrd Mat Mat Turns Passed 818 | 74 478 266 Spaces Moved 1046 | 54 665 327 Core 14 | 4 . 10 Treads . | . . . Legs 117 | 50 67 . Wheels . | . . . Hover . | . . . Flight 915 | . 598 317 Fastest Speed 37 | 50 37 37 Average Speed 47 | 114 46 40 Slowest Speed 200 | 120 200 120 Overloaded Moves . | . . . Propulsion Burnouts . | . . . Robots Hopped 1 | . 1 . Cave-ins Triggered . | . . . Exploration Rate (%) 40 | 5 92 23 Regions Visited 2 Branch Regions . Pre-discovered Areas . | . . . Known Exits Taken 1 | . 1 . Unknown Exits Taken 1 | 1 . . Scrap Searched . | . . . Spaces Dug 11 | . 8 3 Terrain Destroyed 11 | . 8 3 Melee 11 | . 8 3 Projectile . | . . . AOE . | . . . Terrain Rammed . | . . . Walls Destroyed . | . . . Machines Disabled . | . . . Actions | -11 -10 -9 --------- Run | Yrd Mat Mat Total 1244 | 63 776 405 Wait 68 | . 39 29 Move 1042 | 53 662 327 Hop 1 | . 1 . Pick Up 14 | 4 9 1 Fast Attach 17 | 6 6 5 Attach 10 | . 5 5 Detach 6 | . 4 2 Swap 5 | . 2 3 Drop 17 | . 13 4 Fire 19 | . 16 3 Melee 45 | . 19 26 Ram . | . . . Kick . | . . . Crush . | . . . Escape Stasis . | . . . Rewire . | . . . Trap . | . . . Miscellaneous . | . . . Route ------- -11/Scrapyard -10/Materials (discovered 5 exits: *Mat x3 / [*Min x2]) -9/Materials History --------- Turn | Location | Event 27 | -11/Scrapyard | Discovered new exit (range 15) 75 | -11/Scrapyard | Entered Materials 75 | -10/Materials | Discovered new exit (range 15) 258 | -10/Materials | Discovered new exit (range 5) 277 | -10/Materials | Discovered new exit (range 9) 285 | -10/Materials | Central database locked down 308 | -10/Materials | Build established: Mutant 392 | -10/Materials | Identified exit to Materials 553 | -10/Materials | Entered another Materials area 553 | -9/Materials | Evolved 2 slots: Propulsion x1, Utility x1 557 | -9/Materials | Lost 3 parts (1p2n) 626 | -9/Materials | Lost 6 parts (2p3n1w) 780 | -9/Materials | Core integrity fell below 50% 805 | -9/Materials | Core integrity fell below 20% 819 | -9/Materials | Destroyed by G-34 Mercenary with Small Laser Last Messages --------------- 00746_ Connecting with Terminal... 00747_ K-01 Serf collects debris. 00754_ Flight Unit destroyed. 00757_ K-01 Serf collects debris. 00758_ Lgt. Ion Engine destroyed. 00764_ Sneak attack on K-01 Serf. 00764_ Destroyed Lgt. Ion Engine. 00775_ S-10 Pest destroyed. 00779_ Critical hit (Burn: +37). 00793_ Flight Unit destroyed. 00797_ S-10 Pest Lgt. Assault Rifle ripped off. 00797_ Mining Claw destroyed. 00800_ S-10 Pest destroyed. 00803_ Y-45 Defender destroyed. 00807_ Destroyed Flight Unit. 00809_ K-01 Serf collects debris. 00810_ Mining Claw destroyed. 00812_ K-01 Serf collects debris. 00813_ R-06 Scavenger collects Beam Rifle. 00818_ S-10 Pest destroyed. Map ----- +----------------------------------------------------+ | ?????????????????????????????????## # | | ?????????????????????????????????## ! # | | ????????????????????????????????? + # | | ?????????????????????????????????## """ # | | ?????????????????????????????????## """ # | | ?????????????????????????????????## """ # | | ?????????????????????????????????## # | | ?????????????????????????????????#### ###### * | | ?????????????????????????????????############ #+## | | ???????????????????????????????????## # # | | ???????????????????????????????????## # # | | ????????????????????????????? ####### # #! | | ??????????????????###???????? ####### # # | | ??????????????????## ???????? # ### """ """ # ## | | ??????????????????## ???????? # T + """ """ # ## | | ??????????????????## ??????? #[= ### """ """ # ## | | ?????????????????### # ???? ##%#### # ## | | ?????????????####### #########*########+##### ## | | ?????????????###### ######## ## | | ????????????? ^^ ^ | | ????????????? ^ | | ????????????? | | ????????????????### ### #### " ^ ^""""" | | ??????????###???#### ####g#### T """"" | | ??????????##% !!! # #%r%g[ # " """"" | | ??????????## !!! + %+=@=* # | | ??????????## !! # # * # | | ??????????##+####### " ######### #### ####+## | | ?????????????########+########## ######## | | ?????????????## ] % #### ######## """" | | ?????????????## !!! """ + + """" | | ?????????????##"S ! """ ################ """" | | ?????????????##""" !! """ ################ """" | | ?????????????## "" ##????????????## """" | | ?????????????## ##????????????## | | ?????????????#################????????????######## | | ?????????????#################????????????######## | | ?????????????????????????????????????????????????? | | ?????????????????????????????????????????????????? | | ?????????????????????????????????????????????????? | | ?????????????????????????????????????????????????? | | ?????????????????????????????????????????????????? | | ?????????????????????????????????????????????????? | | ?????????????????????????????????????????????????? | | ?????????????????????????????????????????????????? | | ?????????????????????????????????????????????????? | | ?????????????????????????????????????????????????? | | ?????????????????????????????????????????????????? | | ?????????????????????????????????????????????????? | | ?????????????????????????????????????????????????? | +----------------------------------------------------+ Best States ------------- Heat Dissipation 28 Energy Generation 10 Energy Capacity 125 Matter Stores 300 Matter Capacity 300 Sight Range 16 Terrain Scan Density 10 Evasion (%) 62 Item Schematics ----------------- Flight Unit | -10/Materials | Hacked Lgt. Ion Engine | -10/Materials | Hacked Datajack | -9/Materials | Scanalyzed Med. Battery | -9/Materials | Scanalyzed Robot Schematics ------------------ None Fabricated ------------ Nothing Alien Tech Used ----------------- None Achievements -------------- None Challenges ------------ None Game ------ Seed GyrokineticChainMaul Manual? 0 Play Time 00:18:08 Cumulative 82.8 hours Start 2024.03.10 @ 03:02:52 End 2024.03.10 @ 03:16:57 Sessions 1 Manual Loads 0 Difficulty Rogue Special Mode None Game No. 87 Rogue 87 Adventurer 0 Explorer 0 Win Type - Total 0 Types 0/0/0/0/0/0/0/0/0 Lore% 33 Gallery% 47 Achievement% 32 Wizard Run 0 Options --------- Layout 2 ASCII 1 Keyboard 1 Movement Numpad Keybinds 0 Fullscreen 2 Font 32/TamsynBold Map View 50x44 Zoom Use 0% Tactical HUD 1 Map Filters NONE Filters NONE Steam 1 RUN: b4c0b0cc-43c7-45b8-90d6-35c4ed7287c5